fUSD/lending_fUSD_20260201
["ID","MTS","AMOUNT","RATE_DAILY","PERIOD"]
[404183710,1769909539312,520.0,0.00043529,120]
[404183711,1769909541245,500.0,0.00043529,120]
[404183712,1769909541923,500.0,0.00043529,120]
[404183713,1769909542542,500.0,0.00043529,120]
[404183714,1769909543136,500.0,0.00043529,120]
[404183715,1769909598434,1014.04684013,0.00043529,120]
[404183716,1769909646651,364.0848249,0.00043529,120]
[404183717,1769909648548,308.99330833,0.00043529,120]
[404183718,1769909648959,476.61211311,0.00043529,120]
[404183719,1769909649739,3000.0,0.00043529,120]
[404183720,1769909650363,3000.0,0.00043529,120]
[404183721,1769909650793,673.12591615,0.00043529,120]
[404183722,1769909651589,261.02794099,0.00043529,120]
[404183723,1769909653033,3000.0,0.00043529,120]
[404183724,1769909653973,2000.0,0.00043529,120]
[404183725,1769909654581,2000.0,0.00043529,120]
[404183726,1769909655179,2000.0,0.00043529,120]
[404183727,1769909655780,2000.0,0.00043529,120]
[404183728,1769909657522,251.8363288,0.00043529,60]
[404183729,1769909658358,151.0,0.00043529,120]
[404183730,1769909659237,151.0,0.00043529,120]
[404183731,1769909659623,151.0,0.00043529,120]
[404183732,1769909660228,151.0,0.00043529,120]
[404183733,1769909662048,151.0,0.00043529,120]
[404183734,1769909662987,151.0,0.00043529,120]
[404183735,1769909663562,152.43536041,0.00043529,120]
[404183736,1769909663629,151.0,0.00043529,120]
[404183737,1769909664202,151.0,0.00043529,120]
[404183738,1769909668420,211.30761348,0.00043529,120]
[404183739,1769909704770,343.1,0.00043529,30]
[404183740,1769909708590,1376.20493725,0.00043529,120]
[404183744,1769909713094,2578.62533383,0.00043529,120]
[404183778,1769909783448,229.0,0.00043529,120]
[404183779,1769909830706,503.91102473,0.00043529,120]
[404183780,1769909877120,388.52,0.00043529,120]
[404183809,1769910035390,150.0,0.00043529,30]
[404183811,1769910045382,233.49844781,0.00043529,30]
[404183812,1769910055380,237.04920236,0.00043529,30]
[404183813,1769910081133,170.45153845,0.00043529,120]
[404183816,1769910137239,200.0,0.00015315,4]
[404183817,1769910137274,200.0,0.00015315,5]
[404183818,1769910137382,200.0,0.00015315,6]
[404183819,1769910137613,200.0,0.00015315,7]
[404183820,1769910137893,200.0,0.00015315,8]
[404183821,1769910138131,200.0,0.00015315,9]
[404183822,1769910138362,200.0,0.00015315,10]
[404183823,1769910138598,200.0,0.00015315,11]
[404183828,1769910182580,220.78,0.00043529,30]
[404183832,1769910211198,254.32,0.00043529,30]
[404183846,1769910308528,150.0,0.00043529,30]
[404183859,1769910336136,1977.33,0.00011233,2]
[404183884,1769910436701,2700.0,0.000149,5]
[404183887,1769910552414,200.0,0.00043529,120]
[404183890,1769910606313,200.0,0.0004353,30]
[404183899,1769910632108,-150.0,0.00013759,2]
[404183900,1769910632118,-164.09,0.0001391,2]
[404183901,1769910632127,-398.71066211,0.00013911,2]
[404183902,1769910632138,-152.91,0.00013914,2]
[404183903,1769910632147,-886.67,0.00014016,2]
[404183904,1769910632156,-2814.18,0.00014025,2]
[404183905,1769910632166,-200.0,0.0001412,2]
[404183906,1769910632175,-282.0,0.00014165,2]
[404183907,1769910632184,-1200.0,0.00014165,2]
[404183908,1769910632195,-152.0,0.00014166,2]
[404183909,1769910632205,-5312.43,0.00014167,2]
[404183910,1769910632215,-5074.22,0.00014218,2]
[404183911,1769910632224,-500.0,0.00014356,2]
[404183912,1769910632233,-215.42254131,0.00014665,2]
[404183913,1769910632243,-177.4951062,0.00014672,2]
[404183914,1769910632305,-150.0,0.00014674,2]
[404183915,1769910632315,-500.0,0.00014674,2]
[404183916,1769910632325,-165.22066085,0.00014674,2]
[404183917,1769910632334,-416.99798095,0.00014674,2]
[404183918,1769910632343,-618.85313562,0.00014674,2]
[404183919,1769910632352,-500.0,0.00014675,2]
[404183920,1769910632361,-500.0,0.00014675,2]
[404183921,1769910632370,-252.06680944,0.00014675,2]
[404183923,1769910632380,-500.0,0.00014675,2]
[404183925,1769910632393,-150.0,0.00014675,2]
[404183926,1769910632403,-150.0,0.00014675,2]
[404183928,1769910632411,-150.0,0.00014675,2]
[404183930,1769910632421,-4868.46095726,0.00014675,2]
[404183932,1769910632432,-184355.32452528,0.00014675,2]
[404183933,1769910632443,-13903.61359395,0.00014675,2]
[404183935,1769910632454,-12200.10440155,0.00014675,2]
[404183937,1769910632466,-1126.61412583,0.00014675,2]
[404183939,1769910632480,-1920.5531114,0.00014675,2]
[404183940,1769910632491,-483.60999621,0.00014675,2]
[404183942,1769910632505,-4172.53931584,0.00014675,2]
[404183944,1769910632515,-1195.48222071,0.00014675,2]
[404183970,1769910638136,-38570.20992748,0.00014675,2]
[404183971,1769910638191,-2936.5044634,0.00014675,2]
[404183972,1769910638245,-14910.00000001,0.00014675,2]
[404183973,1769910638256,-748.26893567,0.00014675,2]
[404183974,1769910638299,-778.01797996,0.00014675,2]
[404183975,1769910638354,-1773.16,0.00014675,2]
[404183976,1769910638408,-1185.97986445,0.00014675,2]
[404184142,1769910640299,-414736.99033746,0.00014675,2]
[404184181,1769910640665,-588.00932753,0.00014675,2]
[404184291,1769910641804,289.1380608,0.0004353,30]
[404184399,1769910646326,-4072.70910332,0.00014675,2]
[404184400,1769910646381,-598.1162004,0.00014675,2]
[404184401,1769910646488,-6140.06876521,0.00014675,2]
[404184402,1769910646501,-11668.51780467,0.00014675,2]
[404184403,1769910646513,-328.39032819,0.00014675,2]
[404184404,1769910646544,-2016.13306015,0.00014675,2]
[404184407,1769910649532,3156.0,0.0004353,120]
[404184408,1769910670855,578.20924308,0.0004353,120]
[404184409,1769910670948,1000.0,0.0004353,120]
[404184410,1769910671569,1000.0,0.0004353,120]
[404184411,1769910672159,174.61919141,0.0004353,120]
[404184412,1769910725203,3000.0,0.0004353,120]
[404184413,1769910725724,322.6107,0.0004353,120]
[404184414,1769910725855,520.0,0.0004353,120]
[404184415,1769910730067,750.0,0.0004353,120]
[404184416,1769910731003,181.08010149,0.0004353,120]
[404184417,1769910731065,1030.0,0.0004353,120]
[404184418,1769910731624,1068.11,0.0004353,120]
[404184419,1769910732005,151.0,0.0004353,120]
[404184420,1769910732617,156.587,0.0004353,120]
[404184421,1769910733249,162.380719,0.0004353,120]
[404184422,1769910733323,1000.0,0.0004353,120]
[404184423,1769910733852,168.3888056,0.0004353,120]
[404184424,1769910733953,1000.0,0.0004353,120]
[404184425,1769910734464,174.61919141,0.0004353,120]
[404184426,1769910734563,1000.0,0.0004353,120]
[404184427,1769910735074,181.08010149,0.0004353,120]
[404184428,1769910735186,1000.0,0.0004353,120]
[404184429,1769910735683,187.78006525,0.0004353,120]
[404184430,1769910735786,1000.0,0.0004353,120]
[404184431,1769910735859,1000.0,0.0004353,120]
[404184432,1769910736310,194.72792766,0.0004353,120]
[404184433,1769910736409,1000.0,0.0004353,120]
[404184434,1769910736945,201.93286099,0.0004353,120]
[404184435,1769910737681,209.40437684,0.0004353,120]
[404184436,1769910738281,217.15233878,0.0004353,120]
[404184437,1769910738894,225.18697532,0.0004353,120]
[404184438,1769910739532,233.51889341,0.0004353,120]
[404184439,1769910744581,242.15909246,0.0004353,120]
[404184440,1769910747864,219.69603081,0.0004353,120]
[404184441,1769910747948,251.11897888,0.0004353,120]
[404184442,1769910748514,260.4103811,0.0004353,120]
[404184443,1769910749140,270.0455652,0.0004353,120]
[404184444,1769910749758,280.03725112,0.0004353,120]
[404184445,1769910750472,290.39862941,0.0004353,120]
[404184446,1769910750838,176.08748064,0.0004353,120]
[404184447,1769910750994,290.39862941,0.0004353,120]
[404184477,1769910786249,201.12765535,0.0004353,120]
[404184478,1769910791197,2500.0,0.0004353,120]
[404184482,1769910851758,500.0,0.0004353,120]
[404184483,1769910851826,750.0,0.0004353,120]
[404184484,1769910858599,907.94460366,0.0004353,120]
[404184485,1769911014154,200.0,0.00015315,4]
[404184486,1769911014406,200.0,0.00015315,5]
[404184487,1769911014636,200.0,0.00015315,6]
[404184488,1769911014879,200.0,0.00015315,7]
[404184489,1769911015117,200.0,0.00015315,8]
[404184490,1769911015348,200.0,0.00015315,9]
[404184491,1769911015869,200.0,0.00015315,10]
[404184492,1769911015909,200.0,0.00015315,11]
[404184493,1769911016065,200.0,0.00015315,12]
[404184494,1769911016308,200.0,0.00015315,13]
[404184495,1769911016544,159.3529342,0.00015315,14]
[404184496,1769911099822,150.0,0.0004353,30]
[404184497,1769911106692,233.98733604,0.0004353,30]
[404184498,1769911383508,-300.0,0.00013616,2]
[404184499,1769911383534,-20779.6,0.00013617,2]
[404184500,1769911383559,-2754.69665493,0.00013621,2]
[404184501,1769911383584,-150.0,0.00013621,2]
[404184502,1769911383609,-51953.65,0.00013622,2]
[404184503,1769911383632,-213.36,0.000144,2]
[404184504,1769911383660,-150.0,0.00014401,2]
[404184505,1769911383682,-150.0,0.00014401,2]
[404184506,1769911383706,-500.0,0.00014401,2]
[404184507,1769911383729,-150.4373073,0.00014401,2]
[404184508,1769911383752,-150.0,0.00014401,2]
[404184509,1769911383776,-500.0,0.00014401,2]
[404184510,1769911383800,-500.0,0.00014401,2]
[404184511,1769911383824,-500.0,0.00014401,2]
[404184512,1769911383846,-150.0,0.00014401,2]
[404184513,1769911383871,-500.0,0.00014401,2]
[404184514,1769911383895,-150.0,0.00014401,2]
[404184515,1769911383918,-150.0,0.00014401,2]
[404184516,1769911383940,-150.0,0.00014401,2]
[404184517,1769911383966,-500.0,0.00014401,2]
[404184518,1769911383990,-150.0,0.00014401,2]
[404184519,1769911384012,-500.0,0.00014401,2]
[404184520,1769911384034,-150.0,0.00014401,2]
[404184521,1769911384056,-500.0,0.00014401,2]
[404184522,1769911384079,-150.0,0.00014401,2]
[404184523,1769911384102,-500.0,0.00014401,2]
[404184524,1769911384124,-500.0,0.00014401,2]
[404184525,1769911384147,-206.75107445,0.00014401,2]
[404184526,1769911384170,-500.0,0.00014401,2]
[404184527,1769911384204,-500.0,0.00014401,2]
[404184528,1769911384230,-500.0,0.00014401,2]
[404184550,1769911639069,2500.0,0.000149,5]
[404184551,1769911642287,-356.78,0.00013708,2]
[404184552,1769911642309,-250.0,0.00014081,2]
[404184553,1769911642331,-280.60712367,0.00014401,2]
[404184554,1769911642352,-500.0,0.00014401,2]
[404184555,1769911642376,-150.0,0.00014401,2]
[404184556,1769911642398,-500.0,0.00014401,2]
[404184557,1769911642421,-150.0,0.00014401,2]
[404184558,1769911642443,-150.0,0.00014401,2]
[404184559,1769911642465,-500.0,0.00014401,2]
[404184560,1769911642486,-150.0,0.00014401,2]
[404184561,1769911642507,-150.0,0.00014401,2]
[404184562,1769911642528,-500.0,0.00014401,2]
[404184563,1769911642550,-500.0,0.00014401,2]
[404184564,1769911642572,-292.55412534,0.00014401,2]
[404184565,1769911642593,-500.0,0.00014401,2]
[404184566,1769911642616,-154.37220028,0.00014401,2]
[404184567,1769911642638,-500.0,0.00014401,2]
[404184568,1769911642661,-150.54146631,0.00014401,2]
[404184569,1769911642686,-500.0,0.00014401,2]
[404184570,1769911642708,-1200.0,0.00014455,2]
[404184571,1769911642730,-150.0,0.00014455,2]
[404184572,1769911642752,-165.7840668,0.00014456,2]
[404184573,1769911642774,-150.0,0.00014456,2]
[404184574,1769911642979,-500.0,0.00014456,2]
[404184575,1769911643002,-150.0,0.00014456,2]
[404184576,1769911643024,-500.0,0.00014456,2]
[404184577,1769911643048,-500.0,0.00014456,2]
[404184578,1769911643075,-500.0,0.00014456,2]
[404184579,1769911643098,-150.0,0.00014456,2]
[404184580,1769911643122,-500.0,0.00014456,2]
[404184581,1769911643145,-150.0,0.00014456,2]
[404184582,1769911643171,-150.0,0.00014456,2]
[404184583,1769911643194,-150.0,0.00014456,2]
[404184584,1769911643215,-500.0,0.00014456,2]
[404184585,1769911643242,-150.0,0.00014456,2]
[404184586,1769911643265,-150.0,0.00014456,2]
[404184587,1769911643288,-500.0,0.00014456,2]
[404184588,1769911643314,-154.11430393,0.00014456,2]
[404184589,1769911643338,-500.0,0.00014456,2]
[404184590,1769911643361,-500.0,0.00014456,2]
[404184591,1769911643384,-500.0,0.00014456,2]
[404184592,1769911643407,-150.0,0.00014456,2]
[404184593,1769911643433,-500.0,0.00014456,2]
[404184594,1769911643456,-150.0,0.00014456,2]
[404184595,1769911643479,-150.0,0.00014456,2]
[404184596,1769911643502,-500.0,0.00014456,2]
[404184597,1769911643526,-150.0,0.00014456,2]
[404184598,1769911643551,-150.0,0.00014456,2]
[404184599,1769911643576,-500.0,0.00014456,2]
[404184600,1769911643599,-500.0,0.00014456,2]
[404184601,1769911643623,-559.91417246,0.00014456,2]
[404184602,1769911643646,-500.0,0.00014456,2]
[404184603,1769911643671,-500.0,0.00014456,2]
[404184604,1769911643695,-609.4753598,0.00014456,2]
[404184605,1769911643720,-300.0,0.00014456,2]
[404184606,1769911643743,-388.17458479,0.00014456,2]
[404184607,1769911643765,-961.41,0.00014456,2]
[404184608,1769911643789,-431.11179552,0.0001451,2]
[404184609,1769911643813,-150.0,0.00014511,2]
[404184610,1769911643836,-500.0,0.00014511,2]
[404184611,1769911643859,-150.0,0.00014511,2]
[404184612,1769911643884,-500.0,0.00014511,2]
[404184613,1769911643908,-500.0,0.00014511,2]
[404184614,1769911643936,-150.0,0.00014511,2]
[404184615,1769911643958,-547.2282887,0.00014511,2]
[404184616,1769911643981,-150.0,0.00014511,2]
[404184617,1769911644006,-215.39076428,0.00014511,2]
[404184618,1769911644030,-155.14909358,0.00014511,2]
[404184619,1769911644053,-500.0,0.00014511,2]
[404184620,1769911644075,-150.0,0.00014511,2]
[404184621,1769911644097,-568.1964395,0.00014511,2]
[404184622,1769911644121,-150.0,0.00014511,2]
[404184623,1769911644144,-500.0,0.00014511,2]
[404184624,1769911644168,-500.0,0.00014511,2]
[404184625,1769911644189,-500.0,0.00014511,2]
[404184626,1769911644211,-500.0,0.00014511,2]
[404184627,1769911644233,-206.44868677,0.00014511,2]
[404184628,1769911644257,-500.0,0.00014511,2]
[404184629,1769911644278,-150.0,0.00014511,2]
[404184630,1769911644300,-250.52896875,0.00014511,2]
[404184631,1769911644321,-500.0,0.00014511,2]
[404184632,1769911644344,-257.13669619,0.00014511,2]
[404184633,1769911644366,-150.0,0.00014511,2]
[404184634,1769911644387,-500.0,0.00014511,2]
[404184635,1769911644410,-500.0,0.00014511,2]
[404184636,1769911644431,-500.0,0.00014511,2]
[404184637,1769911644452,-500.0,0.00014511,2]
[404184638,1769911644475,-1462.8346,0.0001452,2]
[404184639,1769911644497,-2594.8629,0.0001452,2]
[404184640,1769911644521,-32538.6063,0.0001452,2]
[404184641,1769911644546,-9970.50405931,0.00014563,2]
[404184642,1769911644569,-5920.87376141,0.00014563,2]
[404184643,1769911644593,-1597.3961,0.00014563,2]
[404184644,1769911644616,-2500.0,0.00014563,2]
[404184645,1769911644640,-200.0,0.00014565,2]
[404184646,1769911644663,-500.0,0.00014565,2]
[404184647,1769911644690,-179.32668848,0.00014565,2]
[404184648,1769911644713,-500.0,0.00014565,2]
[404184649,1769911644735,-500.0,0.00014565,2]
[404184650,1769911644761,-169.1075675,0.00014565,2]
[404184651,1769911644783,-235.58915604,0.00014565,2]
[404184652,1769911644806,-500.0,0.00014565,2]
[404184653,1769911644828,-150.0,0.00014565,2]
[404184654,1769911644850,-150.0,0.00014565,2]
[404184655,1769911644874,-500.0,0.00014565,2]
[404184656,1769911644896,-500.0,0.00014565,2]
[404184657,1769911644918,-500.0,0.00014565,2]
[404184658,1769911644941,-500.0,0.00014565,2]
[404184659,1769911644964,-500.0,0.00014565,2]
[404184660,1769911644987,-216.97590661,0.00014565,2]
[404184661,1769911645010,-500.0,0.00014565,2]
[404184662,1769911645035,-150.0,0.00014565,2]
[404184663,1769911645059,-500.0,0.00014565,2]
[404184664,1769911645084,-500.0,0.00014565,2]
[404184665,1769911645108,-500.0,0.00014565,2]
[404184666,1769911645129,-500.0,0.00014565,2]
[404184667,1769911645151,-158.95836825,0.00014571,2]
[404184668,1769911645172,-233.99863794,0.00014575,2]
[404184669,1769911645193,-10389.4812,0.00014575,2]
[404184670,1769911645214,-635.0614,0.00014575,2]
[404184671,1769911645236,-1000.0,0.00014575,2]
[404184672,1769911645257,-2902.68857008,0.00014575,2]
[404184673,1769911645280,-150.00089812,0.00014584,2]
[404184674,1769911645302,-500.0,0.0001462,2]
[404184675,1769911645324,-500.0,0.0001462,2]
[404184676,1769911645347,-506.61162713,0.0001462,2]
[404184677,1769911645369,-156.41027966,0.0001462,2]
[404184678,1769911645393,-150.0,0.0001462,2]
[404184679,1769911645418,-500.0,0.0001462,2]
[404184680,1769911645441,-150.0,0.0001462,2]
[404184681,1769911645464,-543.07614142,0.0001462,2]
[404184682,1769911645488,-500.0,0.0001462,2]
[404184683,1769911645512,-500.0,0.0001462,2]
[404184684,1769911645537,-500.0,0.0001462,2]
[404184685,1769911645562,-500.0,0.0001462,2]
[404184686,1769911645586,-282.97813088,0.0001462,2]
[404184687,1769911645610,-500.0,0.0001462,2]
[404184688,1769911645633,-500.0,0.0001462,2]
[404184689,1769911645830,-500.0,0.0001462,2]
[404184690,1769911645855,-500.0,0.0001462,2]
[404184691,1769911645878,-730.9476384,0.00014621,2]
[404184692,1769911645902,-151.0,0.00014659,2]
[404184693,1769911645926,-154.82705242,0.0001466,2]
[404184694,1769911645950,-506.4463116,0.00014662,2]
[404184695,1769911645972,-500.0,0.00014662,2]
[404184696,1769911645995,-503.69401691,0.00014662,2]
[404184697,1769911646018,-500.0,0.00014662,2]
[404184698,1769911646046,-500.0,0.00014662,2]
[404184699,1769911646070,-500.0,0.00014662,2]
[404184700,1769911646095,-500.0,0.00014662,2]
[404184701,1769911646119,-500.0,0.00014662,2]
[404184702,1769911646143,-500.0,0.00014662,2]
[404184703,1769911646166,-500.0,0.00014662,2]
[404184704,1769911646191,-500.0,0.00014662,2]
[404184705,1769911646216,-500.0,0.00014662,2]
[404184706,1769911646238,-500.0,0.00014662,2]
[404184707,1769911646264,-500.0,0.00014662,2]
[404184708,1769911646287,-500.0,0.00014662,2]
[404184709,1769911646310,-500.0,0.00014662,2]
[404184710,1769911646332,-500.0,0.00014662,2]
[404184711,1769911646354,-519.14978785,0.00014662,2]
[404184712,1769911646379,-641.89858667,0.00014662,2]
[404184713,1769911646404,-523.26417397,0.00014662,2]
[404184714,1769911646426,-500.0,0.00014662,2]
[404184715,1769911646448,-500.0,0.00014662,2]
[404184716,1769911646469,-500.0,0.00014662,2]
[404184717,1769911646496,-500.0,0.00014662,2]
[404184718,1769911646519,-500.0,0.00014662,2]
[404184719,1769911646541,-587.5541255,0.00014662,2]
[404184720,1769911646564,-500.0,0.00014662,2]
[404184721,1769911646588,-500.0,0.00014662,2]
[404184722,1769911646612,-500.0,0.00014662,2]
[404184723,1769911646634,-500.0,0.00014662,2]
[404184724,1769911646657,-496.93460441,0.00014662,2]
[404184725,1769911646682,-500.0,0.00014662,2]
[404184726,1769911646705,-500.0,0.00014662,2]
[404184727,1769911646729,-500.0,0.00014662,2]
[404184728,1769911646756,-500.0,0.00014662,2]
[404184729,1769911646779,-500.0,0.00014662,2]
[404184730,1769911646802,-500.0,0.00014662,2]
[404184731,1769911646825,-500.0,0.00014662,2]
[404184732,1769911646847,-500.0,0.00014662,2]
[404184733,1769911646870,-500.0,0.00014662,2]
[404184734,1769911646892,-5098.5678756,0.00014663,2]
[404184735,1769911646919,-4285.45539717,0.00014663,2]
[404184736,1769911649002,-50000.0,0.00014663,2]
[404184737,1769911661394,-50000.0,0.00014663,2]
[404184738,1769911671341,-50000.0,0.00014663,2]
[404184739,1769911676003,-50000.0,0.00014663,2]
[404184740,1769911677255,-50000.0,0.00014663,2]
[404184741,1769911679422,-500.0,0.00014662,2]
[404184742,1769911679452,-500.0,0.00014662,2]
[404184743,1769911679479,-500.0,0.00014662,2]
[404184744,1769911679507,-48500.0,0.00014663,2]
[404184745,1769911687414,-345.91474539,0.00014565,2]
[404184746,1769911687437,-1024.86760112,0.00014565,2]
[404184747,1769911687459,-1116.17164634,0.00014565,2]
[404184748,1769911687483,-300.0,0.00014662,2]
[404184749,1769911687506,-17213.04600715,0.00014663,2]
[404184750,1769911688340,-226.74400397,0.00014564,2]
[404184751,1769911688365,-500.0,0.00014564,2]
[404184752,1769911688391,-253.64132624,0.00014613,2]
[404184753,1769911688419,-19019.61466979,0.00014663,2]
[404184754,1769911689958,-150.0,0.00014564,2]
[404184755,1769911689982,-500.0,0.00014619,2]
[404184756,1769911690004,-150.0,0.00014619,2]
[404184757,1769911690027,-19200.0,0.00014663,2]
[404184759,1769911697274,-200.0,0.00014207,2]
[404184760,1769911697308,-19800.0,0.00014663,2]
[404184761,1769911704947,-20000.0,0.00014663,2]
[404184763,1769911711721,-500.0,0.00014662,2]
[404184764,1769911711745,-500.0,0.00014662,2]
[404184765,1769911711769,-352.84918147,0.00014662,2]
[404184766,1769911711792,-500.0,0.00014662,2]
[404184767,1769911711815,-18147.15081853,0.00014663,2]
[404184768,1769911715788,-10000.0,0.00014663,2]
[404184769,1769911720558,-10000.0,0.00014663,2]
[404184770,1769911725645,-1111.95,0.00014086,2]
[404184771,1769911725669,-1111.95,0.00014131,2]
[404184772,1769911725698,-1111.95,0.00014176,2]
[404184773,1769911725720,-1111.95,0.00014221,2]
[404184774,1769911725744,-1111.95,0.00014266,2]
[404184775,1769911725768,-1111.95,0.00014311,2]
[404184776,1769911725792,-1111.95,0.00014356,2]
[404184777,1769911725817,-1111.95,0.00014401,2]
[404184778,1769911725841,-1111.95,0.00014446,2]
[404184779,1769911725866,-1111.95,0.00014491,2]
[404184780,1769911725891,-1111.95,0.00014536,2]
[404184781,1769911725920,-171.32839914,0.00014574,2]
[404184782,1769911725945,-1111.95,0.00014581,2]
[404184783,1769911725968,-1111.95,0.00014626,2]
[404184784,1769911725993,-35373.32160086,0.00014663,2]
[404184786,1769911747886,-35690.6191,0.0001452,2]
[404184787,1769911747913,-150.0,0.00014662,2]
[404184788,1769911747937,-600.0,0.00014663,2]
[404184789,1769911747962,-11559.3809,0.00014663,2]
[404184791,1769911778880,-2500.0,0.00014563,2]
[404184792,1769911778904,-500.0,0.00014564,2]
[404184793,1769911778929,-150.0,0.00014564,2]
[404184794,1769911778951,-500.0,0.00014619,2]
[404184795,1769911778974,-214.39371014,0.00014619,2]
[404184796,1769911778997,-500.0,0.00014662,2]
[404184797,1769911779019,-500.0,0.00014662,2]
[404184798,1769911779042,-500.0,0.00014662,2]
[404184799,1769911779066,-44635.60628986,0.00014663,2]
[404184800,1769911780506,-50000.0,0.00014663,2]
[404184801,1769911783369,-50000.0,0.00014663,2]
[404184802,1769911785597,-16412.76052464,0.00014663,2]
[404184803,1769911785620,-17091.319223,0.00014663,2]
[404184804,1769911785646,-16495.92025236,0.00014663,2]
[404184805,1769911789917,-47891.14246034,0.00014663,2]
[404184806,1769911789943,-1111.95,0.0001467,2]
[404184807,1769911790002,652.0,0.00043538,120]
[404184809,1769911806025,151.0,0.0001466,2]
[404184810,1769911809554,-543.57183342,0.00014674,2]
[404184811,1769911809579,-200.0,0.00014674,2]
[404184812,1769911809605,-500.0,0.00014674,2]
[404184813,1769911809629,-1200.0,0.00014674,2]
[404184814,1769911809662,-500.0,0.00014675,2]
[404184815,1769911809686,-500.0,0.00014675,2]
[404184816,1769911809712,-206.50003282,0.00014675,2]
[404184817,1769911809736,-500.0,0.00014675,2]
[404184818,1769911809762,-500.0,0.00014675,2]
[404184819,1769911810059,-500.0,0.00014675,2]
[404184820,1769911810087,-504.97823182,0.00014675,2]
[404184821,1769911810113,-500.0,0.00014675,2]
[404184822,1769911810137,-233.69936596,0.00014693,2]
[404184823,1769911810163,-457.15807564,0.00014715,2]
[404184832,1769911832202,-746.14,0.00014237,2]
[404184833,1769911832212,-195.0,0.00014674,2]
[404184834,1769911832222,-300.0,0.00014674,2]
[404184835,1769911832231,-654.79192436,0.00014715,2]
[404184836,1769911832240,-404.06807564,0.00014728,2]
[404184837,1769911832255,-95.93192436,0.00014728,2]
[404184838,1769911832265,-418.37551046,0.0001473,2]
[404184839,1769911832277,-450.0,0.0001473,2]
[404184840,1769911832287,-562.04587432,0.0001473,2]
[404184841,1769911832296,-204.56912107,0.0001473,2]
[404184842,1769911832306,-156.59964133,0.0001473,2]
[404184843,1769911832317,-68.88674452,0.0001473,2]
[404184844,1769911832326,-307.43080519,0.0001473,2]
[404184845,1769911832335,-961.41,0.0001473,2]
[404184846,1769911832345,-1111.95,0.0001476,2]
[404184847,1769911832359,-500.0,0.00014783,2]
[404184848,1769911832369,-151.0,0.00014784,2]
[404184849,1769911832378,-151.0,0.00014784,2]
[404184850,1769911832388,-151.0,0.00014784,2]
[404184851,1769911832397,-154.696771,0.00014784,2]
[404184852,1769911832407,-172.45,0.000148,2]
[404184853,1769911832416,-1111.95,0.00014805,2]
[404184854,1769911832425,-500.0,0.00014838,2]
[404184855,1769911832434,-151.0,0.00014838,2]
[404184856,1769911832443,-151.0,0.00014838,2]
[404184857,1769911832453,-214.376465,0.00014838,2]
[404184858,1769911832462,-151.0,0.00014838,2]
[404184859,1769911832471,-151.0,0.00014838,2]
[404184861,1769911832480,-1111.95,0.0001485,2]
[404184863,1769911832489,-205.93434402,0.00014893,2]
[404184865,1769911832497,-1111.95,0.00014895,2]
[404184866,1769911832506,-664.11,0.000149,2]
[404184867,1769911832516,-172.45,0.000149,2]
[404184868,1769911832528,-5920.87376135,0.00014934,2]
[404184870,1769911832537,-1111.95,0.0001494,2]